bitfinex/quotes_BTCUSD_20251201
["timestamp","ask_amount","ask_price","bid_price","bid_amount"]
[1764555592876,0.28432637,87330.0,87329.0,0.0117778]
[1764555593933,0.29572637,87330.0,87329.0,0.0167778]
[1764555594396,0.29572637,87330.0,87329.0,0.0117778]
[1764555594737,0.29572637,87330.0,87329.0,0.0157778]
[1764555595277,0.28432637,87330.0,87329.0,0.0157778]
[1764555596246,0.29572637,87330.0,87329.0,0.0157778]
[1764555597807,0.29572637,87330.0,87329.0,0.01706236]
[1764555598446,0.06671,87330.0,87329.0,0.01706236]
[1764555600047,0.05531,87330.0,87329.0,0.01706236]
[1764555600689,0.02235,87330.0,87329.0,0.01706236]
[1764555600896,0.01681,87336.0,87329.0,0.01706236]
[1764555600897,0.01681,87341.0,87336.0,0.01145003]
[1764555601094,0.24043466,87342.0,87334.0,0.09734812]
[1764555601410,0.01144976,87338.0,87331.0,0.4317988]
[1764555601587,0.01144937,87341.0,87335.0,0.01145016]
[1764555601769,0.01681,87344.0,87336.0,0.02059886]
[1764555601957,0.01144937,87341.0,87334.0,0.240454]
[1764555602165,0.01144963,87339.0,87333.0,0.01145042]
[1764555602357,0.01144963,87339.0,87334.0,0.01145029]
[1764555602563,0.01144963,87339.0,87335.0,0.22900071]
[1764555602766,0.02235,87335.0,87330.0,0.323]
[1764555603073,0.02235,87331.0,87329.0,0.0117778]
[1764555603282,0.02235,87331.0,87330.0,0.22901637]
[1764555603476,0.01144859,87347.0,87339.0,0.01144963]
[1764555603813,0.01144885,87345.0,87339.0,0.02283209]
[1764555604121,0.02235,87340.0,87339.0,0.01138246]
[1764555605556,0.28430015,87340.0,87339.0,0.01138246]
[1764555606305,0.25134015,87340.0,87339.0,0.01138246]
[1764555606504,0.25134015,87340.0,87339.0,0.01338246]
[1764555606706,0.28430015,87340.0,87339.0,0.0143536]
[1764555608440,0.28430015,87340.0,87339.0,0.00297114]
[1764555608845,0.29570015,87340.0,87339.0,0.00297114]
[1764555609689,0.28430015,87340.0,87339.0,0.00297114]
[1764555609938,0.29570015,87340.0,87339.0,0.00297114]
[1764555612020,0.28430015,87340.0,87339.0,0.00297114]
[1764555612235,0.29570015,87340.0,87339.0,0.00297114]
[1764555612436,0.35822314,87340.0,87339.0,0.00297114]
[1764555612653,0.35822314,87340.0,87339.0,1.14e-06]
[1764555612801,0.3696056,87340.0,87339.0,1.14e-06]
[1764555613004,0.39411408,87340.0,87339.0,1.14e-06]
[1764555613196,0.40117392,87340.0,87339.0,1.14e-06]
[1764555613403,0.40217392,87340.0,87339.0,1.14e-06]
[1764555613600,0.40517392,87340.0,87339.0,1.14e-06]
[1764555615305,0.57485322,87340.0,87339.0,1.14e-06]
[1764555618385,0.60550823,87340.0,87339.0,1.14e-06]
[1764555618589,0.54298524,87340.0,87339.0,1.14e-06]
[1764555618747,0.53884278,87340.0,87339.0,1.14e-06]
[1764555619335,0.50818777,87340.0,87339.0,1.14e-06]
[1764555619549,0.49678777,87340.0,87339.0,1.14e-06]
[1764555619749,0.50818777,87340.0,87339.0,1.14e-06]
[1764555621397,0.54933041,87340.0,87339.0,1.14e-06]
[1764555622230,0.50818777,87340.0,87339.0,1.14e-06]
[1764555626865,0.50820781,87340.0,87339.0,1.14e-06]
[1764555627061,0.5275031,87340.0,87339.0,1.14e-06]
[1764555627274,0.49680781,87340.0,87339.0,1.14e-06]
[1764555627694,0.49580781,87340.0,87339.0,1.14e-06]
[1764555627999,0.49680781,87340.0,87339.0,1.14e-06]
[1764555628319,0.49380781,87340.0,87339.0,1.14e-06]
[1764555628736,0.50720781,87340.0,87339.0,1.14e-06]
[1764555640746,0.53795672,87340.0,87339.0,1.14e-06]
[1764555642379,0.50720781,87340.0,87339.0,1.14e-06]
[1764555650012,0.49580781,87340.0,87339.0,1.14e-06]
[1764555650243,0.50720781,87340.0,87339.0,1.14e-06]
[1764555653168,0.53795672,87340.0,87339.0,1.14e-06]
[1764555653985,0.50720781,87340.0,87339.0,1.14e-06]
[1764555654720,1.00643371,87340.0,87339.0,1.14e-06]
[1764555654992,0.24046621,87311.0,87310.0,0.0004]
[1764555655204,0.24051869,87291.0,87290.0,0.0004]
[1764555655452,0.28336869,87291.0,87290.0,0.00046777]
[1764555655649,0.31294869,87291.0,87290.0,0.00046777]
[1764555656273,0.30154869,87291.0,87290.0,0.00046777]
[1764555657054,0.29430869,87291.0,87290.0,0.00046777]
[1764555657598,0.29430869,87291.0,87290.0,0.00146777]
[1764555659100,0.30570869,87291.0,87290.0,0.00146777]
[1764555659684,0.29430869,87291.0,87290.0,0.00146777]
[1764555659888,0.30570869,87291.0,87290.0,0.00146777]
[1764555660651,0.30570869,87291.0,87290.0,0.00046777]
[1764555661707,0.62870869,87291.0,87290.0,0.00046777]
[1764555661929,0.22912919,87287.0,87280.0,0.0004]
[1764555662133,0.26079919,87287.0,87280.0,0.0004]
[1764555662332,0.29037919,87287.0,87280.0,0.0004]
[1764555664004,0.27997919,87287.0,87280.0,0.0004]
[1764555664205,0.29861919,87287.0,87280.0,0.0004]
[1764555664390,0.29961919,87287.0,87280.0,0.0004]
[1764555668657,0.02227,87287.0,87284.0,0.01138246]
[1764555668844,0.05185,87287.0,87284.0,0.24051947]
[1764555669054,0.05185,87287.0,87286.0,0.00176164]
[1764555669956,0.05085,87287.0,87286.0,0.00176164]
[1764555670195,0.04985,87287.0,87286.0,0.00176164]
[1764555670394,0.06818342,87287.0,87286.0,0.00376164]
[1764555671186,0.04985,87287.0,87286.0,0.00376164]
[1764555674560,0.07958342,87287.0,87286.0,0.00376164]
[1764555674986,0.06818342,87287.0,87286.0,0.00376164]
[1764555675195,0.07958342,87287.0,87286.0,0.00376164]
[1764555675595,0.06125,87287.0,87286.0,0.00376164]
[1764555675807,0.04985,87287.0,87286.0,0.00376164]
[1764555676246,0.04985,87287.0,87286.0,0.00176164]
[1764555676442,0.04985,87287.0,87286.0,0.00276164]
[1764555679504,0.01534,87291.0,87286.0,0.00276164]
[1764555679744,0.1769193,87296.0,87292.0,0.0114558]
[1764555679948,0.1769193,87296.0,87294.0,0.22910853]
[1764555680122,0.01534,87301.0,87294.0,0.24049099]
[1764555680312,0.01534,87301.0,87296.0,0.22910375]
[1764555680512,0.01534,87301.0,87295.0,0.22910623]
[1764555680753,0.02679462,87301.0,87297.0,0.22910036]
[1764555680946,0.01534,87301.0,87297.0,0.22910036]
[1764555681190,0.01534,87301.0,87299.0,0.22909642]
[1764555681829,0.02639357,87309.0,87305.0,0.22908134]
[1764555682050,0.01494,87309.0,87306.0,0.22907711]
[1764555682252,0.02639357,87309.0,87305.0,0.2404638]
[1764555682780,0.01494,87309.0,87305.0,0.2404638]
[1764555683189,0.01594,87309.0,87307.0,0.22907595]
[1764555683361,0.01694,87309.0,87307.0,0.22907595]
[1764555683526,0.01694,87309.0,87306.0,0.22907933]
[1764555683725,0.01494,87309.0,87306.0,0.22907933]
[1764555683966,0.01694,87309.0,87306.0,0.22907933]
[1764555684268,0.01694,87309.0,87308.0,0.55207408]
[1764555684269,0.001,87309.0,87308.0,0.55207408]
[1764555684467,0.001,87309.0,87308.0,0.62598909]
[1764555684674,0.04092688,87345.0,87308.0,0.62598909]
[1764555684675,0.03069516,87343.0,87338.0,0.01144976]
[1764555684890,0.00039392,87342.0,87341.0,0.33444937]
[1764555685096,0.00039392,87342.0,87341.0,0.323]
[1764555686334,0.00039392,87342.0,87341.0,0.42334812]
[1764555686953,0.04703392,87342.0,87341.0,0.003]
[1764555688675,0.04703392,87342.0,87338.0,0.01138246]
[1764555688876,0.01853,87339.0,87338.0,0.01138246]
[1764555689482,0.04664,87339.0,87338.0,0.01138246]
[1764555690039,0.04664,87339.0,87338.0,0.01338246]
[1764555690605,0.04664,87339.0,87338.0,0.24237785]
[1764555690937,0.04664,87339.0,87338.0,0.01338246]
[1764555691441,0.05804,87339.0,87338.0,0.002]
[1764555691645,0.07637342,87339.0,87338.0,0.01338246]
[1764555692195,0.05804,87339.0,87338.0,0.01338246]
[1764555692381,0.04664,87339.0,87338.0,0.01338246]
[1764555692969,0.06497342,87339.0,87338.0,0.01338246]
[1764555693273,0.07637342,87339.0,87338.0,0.01338246]
[1764555694021,0.07637342,87339.0,87338.0,0.002]
[1764555695282,0.01145029,87334.0,87331.0,0.00025069]
[1764555695487,0.02993,87332.0,87331.0,0.00025069]
[1764555695843,0.05804,87332.0,87331.0,0.00025069]
[1764555696676,0.06004,87332.0,87331.0,0.00025069]
[1764555696893,0.07837342,87332.0,87331.0,0.00025069]
[1764555698391,0.07937342,87332.0,87331.0,0.00025069]
[1764555698575,0.24905272,87332.0,87331.0,0.00025069]
[1764555698808,0.2307193,87332.0,87331.0,0.00025069]
[1764555700530,0.5537193,87332.0,87331.0,0.00025069]
[1764555700731,0.57811453,87332.0,87331.0,0.00025069]
[1764555701078,0.58515769,87332.0,87331.0,0.00025069]
[1764555702286,0.61956133,87332.0,87331.0,0.00025069]
[1764555706395,0.61956133,87332.0,87331.0,0.00025069]
[1764555710136,0.58515769,87332.0,87331.0,0.00025069]
[1764555710338,0.60445285,87332.0,87331.0,0.00025069]
[1764555710566,0.61585285,87332.0,87331.0,0.00025069]
[1764555710919,0.61577206,87332.0,87331.0,0.00025069]
[1764555711671,0.26221117,87332.0,87331.0,0.00025069]
[1764555711884,0.26240801,87332.0,87331.0,0.00025069]
[1764555713776,0.04964,87332.0,87331.0,0.01163315]
[1764555714305,0.04864,87332.0,87331.0,0.01163315]
[1764555714509,0.04664,87332.0,87331.0,0.01163315]
[1764555714943,0.04764,87332.0,87331.0,0.01163315]
[1764555716928,0.01145291,87314.0,87299.0,0.01145488]
[1764555717151,0.01145357,87309.0,87303.0,0.2290872]
[1764555717330,0.01145357,87309.0,87307.0,0.09734812]
[1764555717541,0.01409,87308.0,87307.0,0.09734812]
[1764555717749,0.01145331,87311.0,87307.0,0.09734812]
[1764555717954,0.01145317,87312.0,87308.0,0.24052778]
[1764555718150,0.01409,87314.0,87310.0,0.01145344]
[1764555718336,0.01145304,87313.0,87308.0,0.0114537]
[1764555718739,0.01145317,87312.0,87308.0,0.0114537]
[1764555719127,0.01145304,87313.0,87309.0,0.01145357]
[1764555719325,0.01145304,87313.0,87310.0,0.01145344]
[1764555720301,0.24315091,87314.0,87310.0,0.01145344]
[1764555720302,0.02554291,87314.0,87310.0,0.01145344]
[1764555720644,0.02554291,87314.0,87310.0,0.01445344]
[1764555720838,0.0114516,87324.0,87311.0,0.03184777]
[1764555721058,0.01145213,87320.0,87312.0,0.24051413]
[1764555721258,0.01145213,87320.0,87311.0,0.03184777]
[1764555721259,0.01145226,87319.0,87311.0,0.01145331]
[1764555721469,0.01145252,87317.0,87312.0,0.24051444]
[1764555721672,0.01851,87312.0,87308.0,0.0114537]
[1764555721876,0.02554226,87319.0,87310.0,0.01345344]
[1764555722078,0.04092688,87341.0,87320.0,0.01145213]
[1764555722079,0.01145081,87330.0,87320.0,0.01145213]
[1764555722282,0.01145081,87330.0,87317.0,0.01145252]
[1764555722283,0.01145147,87325.0,87323.0,0.09734812]
[1764555722444,0.01145121,87327.0,87323.0,0.09734812]
[1764555722641,0.02560016,87335.0,87323.0,0.09759883]
[1764555722853,0.0114499,87337.0,87323.0,0.43199085]
[1764555723072,0.01144976,87338.0,87323.0,0.43199085]
[1764555723269,0.24044181,87340.0,87323.0,0.43199085]
[1764555723470,0.01145016,87335.0,87323.0,0.43199085]
[1764555723670,0.01145068,87331.0,87323.0,0.42059883]
[1764555723876,0.01144976,87338.0,87323.0,0.42059883]
[1764555724087,0.01145068,87331.0,87323.0,0.42059883]
[1764555724298,0.01145094,87329.0,87323.0,0.42059883]
[1764555724502,0.01145068,87331.0,87323.0,0.42359883]
[1764555724861,0.01145094,87329.0,87323.0,0.42359883]
[1764555725101,0.24047233,87329.0,87323.0,0.42359883]
[1764555725349,0.01145121,87327.0,87323.0,0.42359883]
[1764555725472,0.01145121,87327.0,87323.0,0.10059883]
[1764555725875,0.01145108,87328.0,87323.0,0.10059883]
[1764555726076,0.02553963,87339.0,87323.0,0.32963356]
[1764555726312,0.01145003,87336.0,87323.0,0.32963356]
[1764555726491,0.24045274,87336.0,87323.0,0.32963356]
[1764555726830,0.01409,87342.0,87323.0,0.39215655]
[1764555727032,0.01144872,87346.0,87323.0,0.40354857]
[1764555727799,0.01409,87328.0,87323.0,0.10783883]
[1764555728005,0.01145055,87332.0,87323.0,0.10059883]
[1764555728220,0.01145055,87332.0,87323.0,0.12738427]
[1764555728426,0.01145068,87331.0,87323.0,0.12738427]
[1764555728623,0.01145055,87332.0,87323.0,0.1232494]
[1764555728823,0.0114499,87337.0,87323.0,0.14464966]
[1764555729003,0.01145016,87335.0,87323.0,0.14464966]
[1764555729209,0.01145042,87333.0,87323.0,0.14564966]
[1764555729539,0.01145029,87334.0,87323.0,0.14564966]
[1764555729719,0.0114499,87337.0,87323.0,0.13764966]
[1764555729925,0.01145016,87335.0,87323.0,0.13864966]
[1764555730120,0.01145016,87335.0,87323.0,0.14164966]
[1764555730418,0.01145042,87333.0,87323.0,0.14164966]
[1764555730623,0.01862811,87324.0,87323.0,0.01566128]
[1764555730820,0.04698811,87324.0,87323.0,0.01566128]
[1764555731203,0.04698811,87324.0,87323.0,0.00425071]
[1764555731407,0.04698811,87324.0,87323.0,0.00125071]
[1764555731793,0.04698811,87324.0,87323.0,0.00225071]
[1764555732248,0.04698811,87324.0,87323.0,0.00125071]
[1764555733086,0.04698811,87324.0,87323.0,0.00025071]
[1764555733290,0.05838811,87324.0,87323.0,0.00025071]
[1764555733447,0.04698811,87324.0,87323.0,0.00025071]
[1764555734431,0.04998811,87324.0,87323.0,0.00025071]
[1764555736039,0.06138811,87324.0,87323.0,0.00025071]
[1764555736240,0.04998811,87324.0,87323.0,0.00025071]
[1764555737079,0.06138811,87324.0,87323.0,0.00025071]
[1764555738584,0.04998811,87324.0,87323.0,0.00025071]
[1764555738765,0.06138811,87324.0,87323.0,0.00025071]
[1764555738964,0.04998811,87324.0,87323.0,0.00025071]
[1764555739389,0.06138811,87324.0,87323.0,0.00025071]
[1764555740067,0.04998811,87324.0,87323.0,0.00025071]
[1764555740892,0.06832153,87324.0,87323.0,0.00025071]
[1764555742464,0.07972153,87324.0,87323.0,0.00025071]
[1764555742597,0.06832153,87324.0,87323.0,0.00025071]
[1764555743857,0.05722811,87324.0,87323.0,0.00025071]
[1764555744104,0.04917811,87324.0,87323.0,0.01166128]
[1764555745942,0.04617811,87324.0,87323.0,0.01166128]
[1764555746170,0.04817811,87324.0,87323.0,0.01166128]
[1764555747455,0.00211811,87324.0,87323.0,0.01166128]
[1764555748923,0.00011811,87324.0,87323.0,0.01166128]
[1764555749347,0.00111811,87324.0,87323.0,0.01166128]
[1764555750579,0.27428022,87324.0,87323.0,0.01166128]
[1764555751134,0.04524811,87324.0,87323.0,0.01166128]
[1764555751337,0.01857811,87324.0,87323.0,0.01166128]
[1764555751822,0.00111811,87324.0,87323.0,0.01166128]
[1764555752419,0.04524811,87324.0,87323.0,0.01166128]
[1764555752621,0.04524811,87324.0,87323.0,0.00025071]
[1764555752947,0.08222153,87324.0,87323.0,0.00025071]
[1764555753388,0.07082153,87324.0,87323.0,0.00025071]
[1764555753548,0.05248811,87324.0,87323.0,0.00025071]
[1764555754369,0.05248811,87324.0,87293.0,0.01145567]
[1764555754370,0.24055453,87299.0,87293.0,0.01145567]
[1764555754586,0.01145436,87303.0,87299.0,0.01145488]
[1764555754768,0.24054431,87302.0,87298.0,0.09734812]
[1764555755330,0.24054891,87301.0,87298.0,0.09734812]
[1764555755733,0.01145462,87301.0,87298.0,0.09734812]
[1764555756367,0.22909751,87300.0,87298.0,0.09834812]
[1764555756556,0.22909751,87300.0,87298.0,0.09734812]
[1764555757001,0.22909751,87300.0,87298.0,0.09834812]
[1764555757176,0.22909751,87300.0,87298.0,0.09734812]
[1764555757177,0.0133,87299.0,87298.0,0.09734812]
[1764555757943,0.01145462,87301.0,87298.0,0.09734812]
[1764555757944,0.01145436,87303.0,87299.0,0.01145488]
[1764555758175,0.24054651,87302.0,87298.0,0.09734812]
[1764555758387,0.01145462,87301.0,87298.0,0.10880313]
[1764555758559,0.01145344,87310.0,87299.0,0.01145488]
[1764555758758,0.01145396,87306.0,87303.0,0.01145436]
[1764555758961,0.01145317,87312.0,87308.0,0.0114537]
[1764555759159,0.01145317,87312.0,87309.0,0.01882734]
[1764555759373,0.0133,87318.0,87312.0,0.01145317]
[1764555759554,0.01145147,87325.0,87318.0,0.01145239]
[1764555759753,0.24048154,87325.0,87318.0,0.22904523]
[1764555759954,0.01145147,87325.0,87319.0,0.24049545]
[1764555760180,0.01145042,87333.0,87322.0,0.22903499]
[1764555760531,0.01145016,87335.0,87322.0,0.24044556]
[1764555760718,0.02475081,87330.0,87322.0,0.24044556]
[1764555761134,0.0133,87330.0,87322.0,0.24044556]
[1764555761543,0.01145094,87329.0,87322.0,0.24044556]
[1764555761926,0.0133,87330.0,87322.0,0.24044556]
[1764555762082,0.00211811,87324.0,87322.0,0.24044556]
[1764555762285,0.00011811,87324.0,87322.0,0.24044556]
[1764555762619,0.00111811,87324.0,87322.0,0.24044556]
[1764555764034,0.00111811,87324.0,87322.0,0.01141057]
[1764555764441,0.00111811,87324.0,87323.0,0.22903473]
[1764555765383,0.00011811,87324.0,87323.0,0.22903473]
[1764555765771,0.00111811,87324.0,87323.0,0.22903473]
[1764555765941,0.00111811,87324.0,87323.0,0.55203473]
[1764555767595,0.00111811,87324.0,87323.0,0.55303473]
[1764555768159,0.00011811,87324.0,87323.0,0.55303473]
[1764555768343,0.00011811,87324.0,87323.0,0.55703473]
[1764555769255,0.00011811,87324.0,87323.0,0.56427473]
[1764555770130,0.04672811,87324.0,87323.0,0.328]
[1764555770495,0.27576022,87324.0,87323.0,0.328]
[1764555770669,0.27576022,87324.0,87323.0,0.327]
[1764555770835,0.27576022,87324.0,87323.0,0.328]
[1764555771033,0.27576022,87324.0,87323.0,0.324]
[1764555771372,0.27576022,87324.0,87322.0,0.01141057]
[1764555771571,0.24055022,87324.0,87323.0,0.003]
[1764555771729,0.25200182,87324.0,87323.0,0.001]
[1764555771937,0.27091182,87324.0,87323.0,0.001]
[1764555772138,0.29861182,87324.0,87323.0,0.003]
[1764555772374,0.29861182,87324.0,87323.0,0.001]
[1764555772669,0.30061182,87324.0,87323.0,0.001]
[1764555772881,0.29861182,87324.0,87323.0,0.001]
[1764555773353,0.22905309,87316.0,87315.0,0.00025076]
[1764555773672,0.24796309,87316.0,87315.0,0.00025076]
[1764555773882,0.27566309,87316.0,87315.0,0.00025076]
[1764555774417,0.28706309,87316.0,87315.0,0.00025076]
[1764555774978,0.28806309,87316.0,87315.0,0.00025076]
[1764555775186,0.28706309,87316.0,87315.0,0.00025076]
[1764555775612,0.28806309,87316.0,87315.0,0.00025076]
[1764555775812,0.28706309,87316.0,87315.0,0.00025076]
[1764555776119,0.28906309,87316.0,87315.0,0.00025076]
[1764555777147,0.27766309,87316.0,87315.0,0.00025076]
[1764555777364,0.28706309,87316.0,87315.0,0.00025076]
[1764555777573,0.29006309,87316.0,87315.0,0.00025076]
[1764555784916,0.45974239,87316.0,87315.0,0.00025076]
[1764555790409,0.44834239,87316.0,87315.0,0.00025076]
[1764555790613,0.45974239,87316.0,87315.0,0.00025076]
[1764555792920,0.46698239,87316.0,87315.0,0.00025076]
[1764555794835,0.45974239,87316.0,87315.0,0.00025076]
[1764555795043,0.46698239,87316.0,87315.0,0.00025076]
[1764555798106,0.44834239,87316.0,87315.0,0.00025076]
[1764555798311,0.46698239,87316.0,87315.0,0.00025076]
[1764555798512,0.44834239,87316.0,87315.0,0.00025076]
[1764555798893,0.1915893,87316.0,87315.0,0.00025076]
[1764555799280,0.23602272,87316.0,87315.0,0.00025076]
[1764555799659,0.0114558,87292.0,87283.0,0.01145698]
[1764555799826,0.0114558,87292.0,87280.0,0.62452073]
[1764555799827,0.02425593,87291.0,87286.0,0.01151057]
[1764555800031,0.02425593,87291.0,87267.0,0.01141057]
[1764555800032,0.22914494,87281.0,87267.0,0.01141057]
[1764555800320,0.2603012,87271.0,87260.0,0.0004]
[1764555800529,0.22919746,87261.0,87260.0,0.0004]
[1764555800752,0.27172746,87261.0,87260.0,0.0004]
[1764555800968,0.29782746,87261.0,87260.0,0.00047238]
[1764555801110,0.28642746,87261.0,87260.0,0.00047238]
[1764555801311,0.29782746,87261.0,87260.0,0.00047238]
[1764555801758,0.29782746,87261.0,87260.0,0.00347238]
[1764555802098,0.29782746,87261.0,87260.0,0.00147238]
[1764555802543,0.29782746,87261.0,87260.0,0.00047238]
[1764555803545,0.29782746,87261.0,87260.0,0.00147238]
[1764555803746,0.29782746,87261.0,87260.0,0.00047238]
[1764555803920,0.29782746,87261.0,87260.0,0.00147238]
[1764555804344,0.28642746,87261.0,87260.0,0.00147238]
[1764555804622,0.29366746,87261.0,87260.0,0.00147238]
[1764555804778,0.28642746,87261.0,87260.0,0.00147238]
[1764555804973,0.30506746,87261.0,87260.0,0.00147238]
[1764555805386,0.30506746,87261.0,87260.0,0.00319746]
[1764555806886,0.03113,87261.0,87260.0,0.00319746]
[1764555807092,0.05726,87261.0,87260.0,0.00319746]
[1764555810021,0.06866,87261.0,87260.0,0.00319746]
[1764555811054,0.05726,87261.0,87260.0,0.00319746]
[1764555814626,0.0128,87261.0,87260.0,0.00319746]
[1764555814837,0.02004,87261.0,87260.0,0.00319746]
[1764555816071,0.01953016,87261.0,87260.0,0.00219746]
[1764555816280,0.03704016,87261.0,87260.0,0.00219746]
[1764555816453,0.03704016,87261.0,87260.0,0.00519746]
[1764555816662,0.01145921,87266.0,87260.0,0.00519746]
[1764555816663,0.22916338,87274.0,87266.0,0.01145921]
[1764555816860,0.02613,87270.0,87266.0,0.01141057]
[1764555817095,0.03101,87267.0,87266.0,0.01141057]
[1764555817478,0.05714,87267.0,87266.0,0.01141057]
[1764555818114,0.05714,87267.0,87266.0,0.01241057]
[1764555818748,0.06438,87267.0,87266.0,0.01241057]
[1764555819022,0.08271342,87267.0,87266.0,0.001]
[1764555819197,0.09411342,87267.0,87266.0,0.001]
[1764555819404,0.24065419,87263.0,87260.0,0.00047238]
[1764555819653,0.01751,87261.0,87260.0,0.00047238]
[1764555819859,0.03758685,87284.0,87269.0,0.01145882]
[1764555820058,0.02425724,87281.0,87274.0,0.22916245]
[1764555820295,0.0128,87281.0,87274.0,0.22916192]
[1764555820515,0.02004,87281.0,87274.0,0.22916192]
[1764555821323,0.0128,87281.0,87274.0,0.22916192]
[1764555822122,0.01751,87275.0,87274.0,0.22916192]
[1764555822324,0.01751,87275.0,87270.0,0.09734812]
[1764555822466,0.02613,87275.0,87274.0,0.00128576]
[1764555822886,0.04364,87275.0,87274.0,0.00128576]
[1764555824509,0.04364,87275.0,87274.0,0.23044908]
[1764555824885,0.0128,87281.0,87280.0,0.22914757]
[1764555825104,0.0128,87281.0,87280.0,0.24165567]
[1764555825307,0.03031,87281.0,87280.0,0.0125081]
[1764555825506,0.03031,87281.0,87280.0,0.24165567]
[1764555825740,0.03031,87281.0,87280.0,0.0125081]
[1764555825949,0.05644,87281.0,87280.0,0.0125081]
[1764555826143,0.05744,87281.0,87280.0,0.0125081]
[1764555829684,0.08717342,87281.0,87280.0,0.0125081]
[1764555830655,0.07577342,87281.0,87280.0,0.00109753]
[1764555830862,0.08288202,87281.0,87280.0,0.00109753]
[1764555831067,0.09012202,87281.0,87280.0,0.00109753]
[1764555831676,0.10152202,87281.0,87280.0,0.00109753]
[1764555832086,0.0717886,87281.0,87280.0,0.00109753]
[1764555832307,0.05744,87281.0,87280.0,0.00109753]
[1764555832511,0.06468,87281.0,87280.0,0.00109753]
[1764555833267,0.03131,87281.0,87280.0,0.00109753]
[1764555835284,0.02991,87281.0,87280.0,0.00109753]
[1764555835727,0.07426342,87281.0,87280.0,0.00109753]
[1764555835938,0.22919728,87262.0,87260.0,0.01188295]
[1764555836155,0.02823,87261.0,87260.0,0.01188295]
[1764555836494,0.05425,87261.0,87260.0,0.01188295]
[1764555837165,0.01212,87261.0,87260.0,0.01288295]
[1764555837370,0.01145947,87264.0,87260.0,0.01588295]
[1764555837571,0.01145961,87263.0,87260.0,0.01588295]
[1764555837942,0.01145947,87264.0,87260.0,0.02734295]
[1764555838137,0.01212,87267.0,87262.0,0.01145974]
[1764555838343,0.01145882,87269.0,87265.0,0.01145934]
[1764555839172,0.01145908,87267.0,87263.0,0.24064977]
[1764555839527,0.2406427,87267.0,87265.0,0.001]
[1764555839728,0.01145908,87267.0,87265.0,0.001]
[1764555839939,0.24064258,87267.0,87265.0,0.001]
[1764555840249,0.01145908,87267.0,87263.0,0.01145961]
[1764555840818,0.01145895,87268.0,87265.0,0.09734812]
[1764555840988,0.01145764,87278.0,87268.0,0.01145895]
[1764555841142,0.01145777,87277.0,87273.0,0.22916595]
[1764555841336,0.25340226,87281.0,87276.0,0.0114579]
[1764555841541,0.01145737,87280.0,87276.0,0.0114579]
[1764555841847,0.0114575,87279.0,87275.0,0.01145803]
[1764555842316,0.01611,87276.0,87273.0,0.01141057]
[1764555842473,0.01611,87274.0,87273.0,0.01141057]
[1764555842897,0.04194668,87274.0,87273.0,0.01141057]
[1764555843100,0.01592668,87274.0,87273.0,0.01141057]
[1764555843513,0.01592668,87274.0,87273.0,0.01241057]
[1764555844392,0.0114575,87279.0,87273.0,0.02386886]
[1764555844731,0.0128,87281.0,87278.0,0.24060836]
[1764555844974,0.0128,87281.0,87275.0,0.22916069]
[1764555845183,0.0128,87281.0,87273.0,0.02386886]
[1764555845184,0.0114579,87276.0,87273.0,0.01241057]
[1764555845385,0.01611,87274.0,87273.0,0.01141057]
[1764555845649,0.24527332,87274.0,87273.0,0.01141057]
[1764555845812,0.27129332,87274.0,87273.0,0.01141057]
[1764555847106,0.27853332,87274.0,87272.0,0.00025093]
[1764555847311,0.26882746,87261.0,87253.0,0.01141057]
[1764555847449,0.01146092,87253.0,87250.0,0.0004]
[1764555847656,0.01146092,87253.0,87250.0,0.00051817]
[1764555847657,0.25745373,87251.0,87250.0,0.00051817]
[1764555848165,0.28347373,87251.0,87250.0,0.00051817]
[1764555848853,0.29487373,87251.0,87250.0,0.00051817]
[1764555849040,0.28347373,87251.0,87250.0,0.00051817]
[1764555849856,0.28347373,87251.0,87250.0,0.00151817]
[1764555850093,0.29071373,87251.0,87250.0,0.00151817]
[1764555853680,0.28347373,87251.0,87250.0,0.00151817]
[1764555853879,0.29071373,87251.0,87250.0,0.00151817]
[1764555854519,0.30211373,87251.0,87250.0,0.00151817]
[1764555855131,0.29071373,87251.0,87250.0,0.00151817]
[1764555855333,0.30211373,87251.0,87250.0,0.00151817]
[1764555857010,0.29071373,87251.0,87250.0,0.00151817]
[1764555858055,0.30211373,87251.0,87250.0,0.00151817]
[1764555858275,0.30211373,87251.0,87250.0,0.00220846]
[1764555860309,0.05425,87251.0,87250.0,0.00220846]
[1764555860617,0.06149,87251.0,87250.0,0.00220846]
[1764555860811,0.01146066,87255.0,87250.0,0.01366977]
[1764555861023,0.01146066,87255.0,87251.0,0.01146118]
[1764555861325,0.24067295,87256.0,87251.0,0.25209319]
[1764555861530,0.24067634,87255.0,87251.0,0.02287175]
[1764555861819,0.01683,87252.0,87251.0,0.01141057]
[1764555862031,0.2460511,87252.0,87251.0,0.01141057]
[1764555862183,0.01683,87252.0,87251.0,0.01141057]
[1764555862383,0.01239,87257.0,87251.0,0.02287175]
[1764555862584,0.01146052,87256.0,87251.0,0.02287175]
[1764555862786,0.24067388,87255.0,87251.0,0.02287175]
[1764555862987,0.03648052,87256.0,87251.0,0.02387175]
[1764555863617,0.03648052,87256.0,87252.0,0.24068178]
[1764555864016,0.01683,87253.0,87251.0,0.01241057]
[1764555864222,0.01683,87252.0,87251.0,0.01141057]
[1764555864491,0.01683,87252.0,87251.0,0.01241057]
[1764555864931,0.01683,87252.0,87251.0,0.01141057]
[1764555865099,0.01683,87252.0,87251.0,0.01241057]
[1764555865520,0.01683,87252.0,87251.0,0.01141057]
[1764555865694,0.24067122,87256.0,87251.0,0.02287175]
[1764555866047,0.01146079,87254.0,87251.0,0.02387175]
[1764555866582,0.01636,87252.0,87251.0,0.01241057]
[1764555866982,0.0416,87252.0,87251.0,0.01306947]
[1764555867187,0.0416,87252.0,87251.0,0.01206947]
[1764555867636,0.0416,87252.0,87251.0,0.01306947]
[1764555867836,0.0416,87252.0,87251.0,0.01206947]
[1764555868187,0.0416,87252.0,87251.0,0.01306947]
[1764555868387,0.01146052,87256.0,87251.0,0.25275399]
[1764555868388,0.24067195,87256.0,87251.0,0.25275399]
[1764555868604,0.01146079,87254.0,87251.0,0.25209509]
[1764555868821,0.01146066,87255.0,87251.0,0.25309509]
[1764555869025,0.01146079,87254.0,87251.0,0.01241057]
[1764555869613,0.01636,87252.0,87251.0,0.01241057]
[1764555869813,0.01212,87261.0,87256.0,0.01146052]
[1764555870009,0.01145961,87263.0,87260.0,0.09734812]
[1764555870210,0.0123,87265.0,87260.0,0.10875869]
[1764555870542,0.0123,87265.0,87262.0,0.24065278]
[1764555870743,0.0123,87265.0,87264.0,0.22918958]
[1764555871119,0.01145882,87269.0,87264.0,0.24064905]
[1764555871303,0.02425724,87281.0,87274.0,0.01145816]
[1764555871505,0.01145764,87278.0,87275.0,0.09734812]
[1764555871704,0.22915784,87277.0,87275.0,0.09734812]
[1764555871944,0.0123,87276.0,87275.0,0.09734812]
[1764555874577,0.0123,87276.0,87275.0,0.32750881]